[Event "Queens Festival Final-B 2022"]
[Site "Tornelo"]
[Date "2022.06.25"]
[Round "2.3"]
[White "Scarsi, Anna Laura"]
[Black "Francis, Onkemetse"]
[Result "1-0"]
[ECO "A08"]
[WhiteElo "1867"]
[BlackElo "1777"]
[Annotator "NA RC"]
[PlyCount "71"]
[EventDate "2022.06.24"]
[EventType "tourn"]
[EventCountry "NET"]
[SourceTitle "playchess.com"]
[Source "ChessBase"]
[SourceQuality "1"]
[TimeControl "180+2"]

1. e4 {[%emt 0:00:02]} e6 {[%emt 0:00:12]} 2. d3 {[%emt 0:00:02]} d5 {[%emt 0:00:02]} 3. Nd2 {[%emt 0:00:02]} c5 {[%emt 0:00:05]} 4. Ngf3 {[%emt 0:00:02]} Nc6 {[%emt 0:00:03]} 5. g3 {[%emt 0:00:03]} Bd6 {[%emt 0:00:09]} 6. Bg2 {[%emt 0:00:03]} Nf6 {[%emt 0:00:06]} 7. O-O {[%emt 0:00:03]} O-O {[%emt 0:00:03]} 8. Re1 {[%emt 0:00:04]} Bc7 {[%emt 0:00:05]} 9. c3 {[%emt 0:00:14]} dxe4 {[%emt 0:00:05]} 10. dxe4 {[%emt 0:00:03]} e5 {[%emt 0:00:05]} 11. Qc2 {[%emt 0:00:03]} Qe7 {[%emt 0:00:03]} 12. Nf1 {[%emt 0:00:04]} b6 {[%emt 0:00:07]} 13. Ne3 {[%emt 0:00:06]} g6 {[%emt 0:00:07]} 14. Nd5 {[%emt 0:00:13]} Nxd5 {[%emt 0:00:14]} 15. exd5 {[%emt 0:00:00]} Nd8 {[%emt 0:00:03]} 16. Nxe5 {[%emt 0:00:27]} Bb7 {[%emt 0:00:18]} 17. Nd3 {[%emt 0:00:11]} Qd7 {[%emt 0:00:09]} 18. c4 {[%emt 0:00:03]} Rc8 {[%emt 0:00:16]} 19. Bf4 {[%emt 0:00:08]} Ba8 {[%emt 0:00:07]} 20. Rad1 {[%emt 0:00:09]} Bd6 {[%emt 0:00:08]} 21. Ne5 {[%emt 0:00:13]} Qc7 {[%emt 0:00:07]} 22. Nd3 {[%emt 0:00:04]} Nb7 {[%emt 0:00:07]} 23. Bh3 {[%emt 0:00:09]} Rce8 {[%emt 0:00:05]} 24. Bh6 {[%emt 0:00:03]} Rxe1+ {[%emt 0:00:02]} 25. Rxe1 {[%emt 0:00:00]} Rd8 {[%emt 0:00:06]} 26. Qc3 {[%emt 0:00:06]} Bf8 {[%emt 0:00:04]} 27. Bxf8 {[%emt 0:00:01]} Rxf8 {[%emt 0:00:05]} 28. Qe5 {[%emt 0:00:05]} Nd6 {[%emt 0:00:15]} 29. b3 {[%emt 0:00:03]} a6 {[%emt 0:00:03]} 30. Qe7 {[%emt 0:00:12]} Qxe7 {[%emt 0:00:08]} 31. Rxe7 {[%emt 0:00:00]} b5 {[%emt 0:00:02]} 32. cxb5 {[%emt 0:00:10]} Nxb5 {[%emt 0:00:14]} 33. Bg2 {[%emt 0:00:09]} Nc3 {[%emt 0:00:07]} 34. d6 {[%emt 0:00:05]} Nxa2 {[%emt 0:00:06]} 35. d7 {[%emt 0:00:05]} Bc6 {[%emt 0:00:04]} 36. Bxc6 {[%emt 0:00:04]} 1-0

[Event "Queens Festival Final-B 2022"]
[Site "Tornelo"]
[Date "2022.06.25"]
[Round "2.4"]
[White "Vujcic, Milena"]
[Black "Pang, Ashley"]
[Result "0-1"]
[ECO "C42"]
[WhiteElo "1987"]
[BlackElo "1967"]
[Annotator "NA RC"]
[PlyCount "70"]
[EventDate "2022.06.24"]
[EventType "tourn"]
[EventCountry "NET"]
[SourceTitle "playchess.com"]
[Source "ChessBase"]
[SourceQuality "1"]
[TimeControl "180+2"]

1. e4 {[%emt 0:00:02]} e5 {[%emt 0:00:04]} 2. Nf3 {[%emt 0:00:07]} Nf6 {[%emt 0:00:02]} 3. Nxe5 {[%emt 0:00:04]} d6 {[%emt 0:00:01]} 4. Nf3 {[%emt 0:00:03]} Nxe4 {[%emt 0:00:01]} 5. Nc3 {[%emt 0:00:02]} Nxc3 {[%emt 0:00:02]} 6. dxc3 {[%emt 0:00:01]} Be7 {[%emt 0:00:01]} 7. Be3 {[%emt 0:00:04]} Nd7 {[%emt 0:00:04]} 8. Qd2 {[%emt 0:00:03]} O-O {[%emt 0:00:02]} 9. O-O-O {[%emt 0:00:02]} Nf6 {[%emt 0:00:01]} 10. h4 {[%emt 0:00:05]} c5 {[%emt 0:00:10]} 11. h5 {[%emt 0:00:33]} Qa5 {[%emt 0:00:21]} 12. Kb1 {[%emt 0:00:06]} b5 {[%emt 0:00:26]} 13. Ng5 {[%emt 0:01:04]} h6 {[%emt 0:00:47]} 14. Nh3 {[%emt 0:00:11]} Be6 {[%emt 0:00:11]} 15. b3 {[%emt 0:00:03]} Ne4 {[%emt 0:00:06]} 16. Qd3 {[%emt 0:00:16]} Nxc3+ {[%emt 0:00:05]} 17. Kb2 {[%emt 0:00:02]} Nxd1+ {[%emt 0:00:26]} 18. Qxd1 {[%emt 0:00:02]} Bf6+ {[%emt 0:00:03]} 19. Kb1 {[%emt 0:00:02]} Qc3 {[%emt 0:00:06]} 20. Kc1 {[%emt 0:00:01]} Qa1+ {[%emt 0:00:11]} 21. Kd2 {[%emt 0:00:02]} Bc3+ {[%emt 0:00:01]} 22. Ke2 {[%emt 0:00:02]} Bg4+ {[%emt 0:00:14]} 23. f3 {[%emt 0:00:02]} Qxd1+ {[%emt 0:00:01]} 24. Kxd1 {[%emt 0:00:01]} Bxh5 {[%emt 0:00:04]} 25. Nf4 {[%emt 0:00:02]} Bg6 {[%emt 0:00:01]} 26. Nxg6 {[%emt 0:00:01]} fxg6 {[%emt 0:00:01]} 27. Bd3 {[%emt 0:00:02]} Rae8 {[%emt 0:00:06]} 28. Bf2 {[%emt 0:00:09]} b4 {[%emt 0:00:08]} 29. Bxg6 {[%emt 0:00:03]} Re6 {[%emt 0:00:09]} 30. Bd3 {[%emt 0:00:02]} Kh8 {[%emt 0:00:02]} 31. Bc4 {[%emt 0:00:05]} Re5 {[%emt 0:00:04]} 32. Bg3 {[%emt 0:00:03]} Rg5 {[%emt 0:00:02]} 33. Rh3 {[%emt 0:00:09]} Re8 {[%emt 0:00:01]} 34. f4 {[%emt 0:00:05]} Rxg3 {[%emt 0:00:03]} 35. Be2 {[%emt 0:00:18]} Rxg2 {[%emt 0:00:02]} 0-1

[Event "Queens Festival Final-B 2022"]
[Site "Tornelo"]
[Date "2022.06.25"]
[Round "2.5"]
[White "Mammadova, Aysel"]
[Black "Bian, Erin"]
[Result "1-0"]
[ECO "C50"]
[WhiteElo "1893"]
[BlackElo "1811"]
[Annotator "NA RC"]
[PlyCount "133"]
[EventDate "2022.06.24"]
[EventType "tourn"]
[EventCountry "NET"]
[SourceTitle "playchess.com"]
[Source "ChessBase"]
[SourceQuality "1"]
[TimeControl "180+2"]

1. e4 {[%emt 0:00:02]} e5 {[%emt 0:00:04]} 2. Nf3 {[%emt 0:00:05]} Nc6 {[%emt 0:00:01]} 3. Bc4 {[%emt 0:00:02]} Bc5 {[%emt 0:00:03]} 4. O-O {[%emt 0:00:02]} Nf6 {[%emt 0:00:06]} 5. d4 {[%emt 0:00:02]} Bxd4 {[%emt 0:00:02]} 6. Nxd4 {[%emt 0:00:02]} Nxd4 {[%emt 0:00:00]} 7. f4 {[%emt 0:00:04]} d6 {[%emt 0:00:02]} 8. fxe5 {[%emt 0:00:02]} dxe5 {[%emt 0:00:01]} 9. Bf4 {[%emt 0:00:08]} exf4 {[%emt 0:00:04]} 10. e5 {[%emt 0:00:06]} Ng4 {[%emt 0:00:19]} 11. Rxf4 {[%emt 0:00:15]} Ne6 {[%emt 0:00:54]} 12. Qxg4 {[%emt 0:00:05]} Nxf4 {[%emt 0:00:02]} 13. Qxf4 {[%emt 0:00:02]} Be6 {[%emt 0:00:06]} 14. Bd3 {[%emt 0:00:10]} Qe7 {[%emt 0:00:05]} 15. Nc3 {[%emt 0:00:03]} Qc5+ {[%emt 0:00:02]} 16. Kh1 {[%emt 0:00:03]} O-O-O {[%emt 0:00:02]} 17. Rf1 {[%emt 0:00:18]} Qd4 {[%emt 0:00:06]} 18. Qg3 {[%emt 0:00:03]} g6 {[%emt 0:00:06]} 19. Nb5 {[%emt 0:00:14]} Qb6 {[%emt 0:00:04]} 20. a4 {[%emt 0:00:07]} a6 {[%emt 0:00:02]} 21. Nc3 {[%emt 0:00:03]} Qxb2 {[%emt 0:00:05]} 22. Ne4 {[%emt 0:00:02]} Qd4 {[%emt 0:00:04]} 23. Ng5 {[%emt 0:00:05]} Bc4 {[%emt 0:00:12]} 24. Bxc4 {[%emt 0:00:07]} Qxc4 {[%emt 0:00:01]} 25. Qf2 {[%emt 0:00:01]} Rhf8 {[%emt 0:00:13]} 26. Re1 {[%emt 0:00:07]} Rde8 {[%emt 0:00:07]} 27. Qa7 {[%emt 0:00:10]} h6 {[%emt 0:00:24]} 28. Nf3 {[%emt 0:00:10]} Qxc2 {[%emt 0:00:09]} 29. Qa8+ {[%emt 0:00:03]} Kd7 {[%emt 0:00:01]} 30. Qxb7 {[%emt 0:00:02]} Rb8 {[%emt 0:00:04]} 31. Qd5+ {[%emt 0:00:08]} Kc8 {[%emt 0:00:01]} 32. e6 {[%emt 0:00:03]} fxe6 {[%emt 0:00:04]} 33. Qxe6+ {[%emt 0:00:03]} Kb7 {[%emt 0:00:01]} 34. Qd5+ {[%emt 0:00:03]} Ka7 {[%emt 0:00:02]} 35. Qd4+ {[%emt 0:00:03]} Ka8 {[%emt 0:00:05]} 36. Qd5+ {[%emt 0:00:04]} c6 {[%emt 0:00:06]} 37. Qa5 {[%emt 0:00:10]} Qc4 {[%emt 0:00:04]} 38. Ne5 {[%emt 0:00:03]} Qd4 {[%emt 0:00:10]} 39. Qxa6+ {[%emt 0:00:03]} Qa7 {[%emt 0:00:02]} 40. Qxc6+ {[%emt 0:00:02]} Rb7 {[%emt 0:00:03]} 41. Nd7 {[%emt 0:00:06]} Rd8 {[%emt 0:00:05]} 42. Nc5 {[%emt 0:00:02]} Kb8 {[%emt 0:00:04]} 43. Nxb7 {[%emt 0:00:06]} Qxb7 {[%emt 0:00:01]} 44. Qxb7+ {[%emt 0:00:07]} Kxb7 {[%emt 0:00:01]} 45. Kg1 {[%emt 0:00:02]} Rd2 {[%emt 0:00:03]} 46. Re6 {[%emt 0:00:04]} g5 {[%emt 0:00:04]} 47. Rxh6 {[%emt 0:00:02]} Ra2 {[%emt 0:00:00]} 48. Rg6 {[%emt 0:00:03]} Rxa4 {[%emt 0:00:02]} 49. Rxg5 {[%emt 0:00:02]} Kc7 {[%emt 0:00:01]} 50. g3 {[%emt 0:00:03]} Kd6 {[%emt 0:00:01]} 51. h4 {[%emt 0:00:02]} Ra2 {[%emt 0:00:02]} 52. Rf5 {[%emt 0:00:03]} Ke6 {[%emt 0:00:01]} 53. Rf2 {[%emt 0:00:02]} Ra1+ {[%emt 0:00:02]} 54. Kg2 {[%emt 0:00:02]} Ra3 {[%emt 0:00:02]} 55. g4 {[%emt 0:00:02]} Ra4 {[%emt 0:00:01]} 56. Kg3 {[%emt 0:00:03]} Ra3+ {[%emt 0:00:01]} 57. Rf3 {[%emt 0:00:01]} Ra4 {[%emt 0:00:01]} 58. h5 {[%emt 0:00:02]} Ke7 {[%emt 0:00:01]} 59. g5 {[%emt 0:00:03]} Ra5 {[%emt 0:00:01]} 60. Kg4 {[%emt 0:00:02]} Ra1 {[%emt 0:00:02]} 61. h6 {[%emt 0:00:03]} Rg1+ {[%emt 0:00:01]} 62. Kf5 {[%emt 0:00:02]} Ra1 {[%emt 0:00:02]} 63. g6 {[%emt 0:00:02]} Kf8 {[%emt 0:00:02]} 64. Kg5+ {[%emt 0:00:02]} Kg8 {[%emt 0:00:08]} 65. h7+ {[%emt 0:00:02]} Kh8 {[%emt 0:00:02]} 66. Rf8+ {[%emt 0:00:03]} Kg7 {[%emt 0:00:01]} 67. h8=Q# {[%emt 0:00:04]} 1-0

[Event "Queens Festival Final-B 2022"]
[Site "Tornelo"]
[Date "2022.06.25"]
[Round "3.1"]
[White "Bian, Erin"]
[Black "Masoumi, Sahar"]
[Result "1-0"]
[ECO "B33"]
[WhiteElo "1811"]
[BlackElo "2004"]
[Annotator "RC"]
[PlyCount "91"]
[EventDate "2022.06.24"]
[EventType "tourn"]
[EventCountry "NET"]
[SourceTitle "playchess.com"]
[Source "ChessBase"]
[SourceQuality "1"]
[TimeControl "180+2"]

1. e4 {[%emt 0:00:02]} c5 {[%emt 0:00:05]} 2. Nf3 {[%emt 0:00:02]} Nc6 {[%emt 0:00:01]} 3. d4 {[%emt 0:00:01]} cxd4 {[%emt 0:00:01]} 4. Nxd4 {[%emt 0:00:01]} Nf6 {[%emt 0:00:02]} 5. Nc3 {[%emt 0:00:01]} e6 {[%emt 0:00:01]} 6. Ndb5 {[%emt 0:00:02]} d6 {[%emt 0:00:01]} 7. Bf4 {[%emt 0:00:01]} e5 {[%emt 0:00:01]} 8. Bg5 {[%emt 0:00:01]} a6 {[%emt 0:00:01]} 9. Na3 {[%emt 0:00:01]} b5 {[%emt 0:00:01]} 10. Nd5 {[%emt 0:00:01]} Be7 {[%emt 0:00:01]} 11. Bxf6 {[%emt 0:00:01]} Bxf6 {[%emt 0:00:01]} 12. c3 {[%emt 0:00:01]} Rb8 {[%emt 0:00:01]} 13. Nc2 {[%emt 0:00:03]} O-O {[%emt 0:00:02]} 14. g3 {[%emt 0:00:11]} g6 {[%emt 0:00:03]} 15. Nce3 {[%emt 0:00:10]} Bg7 {[%emt 0:00:02]} 16. h4 {[%emt 0:00:05]} Be6 {[%emt 0:00:02]} 17. h5 {[%emt 0:00:10]} a5 {[%emt 0:00:01]} 18. Bh3 {[%emt 0:00:16]} Qd7 {[%emt 0:00:14]} 19. Bxe6 {[%emt 0:00:03]} Qxe6 {[%emt 0:00:02]} 20. Qe2 {[%emt 0:00:14]} Ne7 {[%emt 0:00:09]} 21. Rd1 {[%emt 0:00:09]} b4 {[%emt 0:00:04]} 22. Nxe7+ {[%emt 0:00:03]} Qxe7 {[%emt 0:00:02]} 23. Nd5 {[%emt 0:00:01]} Qb7 {[%emt 0:00:05]} 24. c4 {[%emt 0:00:03]} a4 {[%emt 0:00:13]} 25. Qf3 {[%emt 0:00:09]} f5 {[%emt 0:00:05]} 26. hxg6 {[%emt 0:00:09]} hxg6 {[%emt 0:00:02]} 27. exf5 {[%emt 0:00:02]} Rxf5 {[%emt 0:00:05]} 28. Qg4 {[%emt 0:00:02]} Qf7 {[%emt 0:00:11]} 29. Rh2 {[%emt 0:00:11]} e4 {[%emt 0:00:20]} 30. Qh4 {[%emt 0:00:10]} Re5 {[%emt 0:00:32]} 31. Ne3 {[%emt 0:00:12]} Bf6 {[%emt 0:00:07]} 32. Qg4 {[%emt 0:00:10]} Rbe8 {[%emt 0:00:11]} 33. Rxd6 {[%emt 0:00:03]} Rg5 {[%emt 0:00:07]} 34. Qf4 {[%emt 0:00:04]} Be7 {[%emt 0:00:15]} 35. Rh8+ {[%emt 0:00:05]} Kxh8 {[%emt 0:00:32]} 36. Qxf7 {[%emt 0:00:02]} Bxd6 {[%emt 0:00:23]} 37. Qxe8+ {[%emt 0:00:02]} Kh7 {[%emt 0:00:02]} 38. Qd7+ {[%emt 0:00:01]} Kh6 {[%emt 0:00:03]} 39. Qxd6 {[%emt 0:00:01]} Rh5 {[%emt 0:00:02]} 40. Qf8+ {[%emt 0:00:03]} Kh7 {[%emt 0:00:02]} 41. Ng4 {[%emt 0:00:04]} Rh1+ {[%emt 0:00:02]} 42. Ke2 {[%emt 0:00:01]} g5 {[%emt 0:00:03]} 43. Qf5+ {[%emt 0:00:03]} Kh8 {[%emt 0:00:02]} 44. Ne5 {[%emt 0:00:06]} Rb1 {[%emt 0:00:04]} 45. Qf8+ {[%emt 0:00:01]} Kh7 {[%emt 0:00:02]} 46. Qf7+ {[%emt 0:00:01]} 1-0

[Event "Queens Festival Final-B 2022"]
[Site "Tornelo"]
[Date "2022.06.25"]
[Round "3.2"]
[White "Pang, Ashley"]
[Black "Mammadova, Aysel"]
[Result "0-1"]
[ECO "A00"]
[WhiteElo "1967"]
[BlackElo "1893"]
[Annotator "RC"]
[PlyCount "90"]
[EventDate "2022.06.24"]
[EventType "tourn"]
[EventCountry "NET"]
[SourceTitle "playchess.com"]
[Source "ChessBase"]
[SourceQuality "1"]
[TimeControl "180+2"]

1. g3 {[%emt 0:00:02]} Nf6 {[%emt 0:00:05]} 2. Bg2 {[%emt 0:00:02]} e6 {[%emt 0:00:02]} 3. d3 {[%emt 0:00:01]} Be7 {[%emt 0:00:02]} 4. Nd2 {[%emt 0:00:01]} d6 {[%emt 0:00:01]} 5. Ngf3 {[%emt 0:00:01]} Nbd7 {[%emt 0:00:02]} 6. e4 {[%emt 0:00:02]} e5 {[%emt 0:00:02]} 7. O-O {[%emt 0:00:03]} O-O {[%emt 0:00:02]} 8. c3 {[%emt 0:00:01]} c5 {[%emt 0:00:06]} 9. Ne1 {[%emt 0:00:07]} Ne8 {[%emt 0:00:03]} 10. f4 {[%emt 0:00:03]} f5 {[%emt 0:00:06]} 11. Ndf3 {[%emt 0:00:39]} fxe4 {[%emt 0:00:06]} 12. dxe4 {[%emt 0:00:02]} Ndf6 {[%emt 0:00:17]} 13. fxe5 {[%emt 0:00:09]} Nxe4 {[%emt 0:00:07]} 14. Qd5+ {[%emt 0:00:10]} Kh8 {[%emt 0:00:03]} 15. Qxe4 {[%emt 0:00:03]} Bf5 {[%emt 0:00:14]} 16. Qe2 {[%emt 0:00:06]} Bg4 {[%emt 0:00:06]} 17. h3 {[%emt 0:00:03]} Bh5 {[%emt 0:00:04]} 18. g4 {[%emt 0:00:05]} Bg6 {[%emt 0:00:02]} 19. Be3 {[%emt 0:00:12]} Nc7 {[%emt 0:00:30]} 20. exd6 {[%emt 0:00:09]} Bxd6 {[%emt 0:00:03]} 21. Rd1 {[%emt 0:00:05]} Qe7 {[%emt 0:00:03]} 22. Qd2 {[%emt 0:00:17]} Bg3 {[%emt 0:00:08]} 23. Qc1 {[%emt 0:00:28]} Rae8 {[%emt 0:00:05]} 24. Bf2 {[%emt 0:00:07]} Bxf2+ {[%emt 0:00:04]} 25. Rxf2 {[%emt 0:00:01]} Ne6 {[%emt 0:00:08]} 26. Ne5 {[%emt 0:00:12]} Rxf2 {[%emt 0:00:07]} 27. Nxg6+ {[%emt 0:00:02]} hxg6 {[%emt 0:00:02]} 28. Kxf2 {[%emt 0:00:01]} Qh4+ {[%emt 0:00:05]} 29. Kg1 {[%emt 0:00:05]} Ng5 {[%emt 0:00:03]} 30. Qf4 {[%emt 0:00:16]} Rxe1+ {[%emt 0:00:03]} 31. Rxe1 {[%emt 0:00:03]} Qxe1+ {[%emt 0:00:04]} 32. Kh2 {[%emt 0:00:00]} Qe7 {[%emt 0:00:04]} 33. Qb8+ {[%emt 0:00:07]} Kh7 {[%emt 0:00:04]} 34. Qxb7 {[%emt 0:00:05]} Qe5+ {[%emt 0:00:02]} 35. Kh1 {[%emt 0:00:04]} Qe1+ {[%emt 0:00:03]} 36. Kh2 {[%emt 0:00:01]} Qe2 {[%emt 0:00:02]} 37. Qd5 {[%emt 0:00:09]} Ne6 {[%emt 0:00:05]} 38. Qe4 {[%emt 0:00:08]} Qa6 {[%emt 0:00:12]} 39. a3 {[%emt 0:00:02]} Qd6+ {[%emt 0:00:04]} 40. Kh1 {[%emt 0:00:02]} Ng5 {[%emt 0:00:04]} 41. Qe3 {[%emt 0:00:05]} Qd1+ {[%emt 0:00:05]} 42. Kh2 {[%emt 0:00:02]} Qd8 {[%emt 0:00:03]} 43. h4 {[%emt 0:00:01]} Nf7 {[%emt 0:00:04]} 44. h5 {[%emt 0:00:02]} gxh5 {[%emt 0:00:04]} 45. Be4+ {[%emt 0:00:01]} Kg8 {[%emt 0:00:06]} 0-1

[Event "Queens Festival Final-B 2022"]
[Site "Tornelo"]
[Date "2022.06.25"]
[Round "3.3"]
[White "Francis, Onkemetse"]
[Black "Vujcic, Milena"]
[Result "0-1"]
[ECO "C54"]
[WhiteElo "1777"]
[BlackElo "1987"]
[Annotator "RC"]
[PlyCount "124"]
[EventDate "2022.06.24"]
[EventType "tourn"]
[EventCountry "NET"]
[SourceTitle "playchess.com"]
[Source "ChessBase"]
[SourceQuality "1"]
[TimeControl "180+2"]

1. e4 {[%emt 0:00:02]} e5 {[%emt 0:00:04]} 2. Nf3 {[%emt 0:00:03]} Nc6 {[%emt 0:00:01]} 3. Bc4 {[%emt 0:00:03]} Bc5 {[%emt 0:00:02]} 4. c3 {[%emt 0:00:01]} Nf6 {[%emt 0:00:02]} 5. d3 {[%emt 0:00:02]} d6 {[%emt 0:00:01]} 6. h3 {[%emt 0:00:04]} O-O {[%emt 0:00:03]} 7. Bb3 {[%emt 0:00:03]} Bb6 {[%emt 0:00:01]} 8. O-O {[%emt 0:00:02]} h6 {[%emt 0:00:02]} 9. Nbd2 {[%emt 0:00:06]} Ne7 {[%emt 0:00:01]} 10. Re1 {[%emt 0:00:11]} Ng6 {[%emt 0:00:02]} 11. Nc4 {[%emt 0:00:02]} c6 {[%emt 0:00:02]} 12. Nxb6 {[%emt 0:00:03]} axb6 {[%emt 0:00:02]} 13. Bc2 {[%emt 0:00:11]} Be6 {[%emt 0:00:05]} 14. d4 {[%emt 0:00:04]} Bxa2 {[%emt 0:00:43]} 15. Be3 {[%emt 0:00:12]} Be6 {[%emt 0:00:08]} 16. Rxa8 {[%emt 0:00:13]} Qxa8 {[%emt 0:00:03]} 17. dxe5 {[%emt 0:00:02]} dxe5 {[%emt 0:00:01]} 18. Bxb6 {[%emt 0:00:08]} Qa2 {[%emt 0:00:02]} 19. Qb1 {[%emt 0:00:12]} Ra8 {[%emt 0:00:06]} 20. Nd2 {[%emt 0:00:12]} Nd7 {[%emt 0:00:05]} 21. Be3 {[%emt 0:00:02]} Ne7 {[%emt 0:00:27]} 22. Qc1 {[%emt 0:00:14]} Nc8 {[%emt 0:00:05]} 23. f3 {[%emt 0:00:19]} Ncb6 {[%emt 0:00:05]} 24. Bf2 {[%emt 0:00:05]} Na4 {[%emt 0:00:17]} 25. Bxa4 {[%emt 0:00:19]} Rxa4 {[%emt 0:00:05]} 26. Be3 {[%emt 0:00:29]} Ra6 {[%emt 0:00:03]} 27. Qb1 {[%emt 0:00:05]} Nb6 {[%emt 0:00:06]} 28. Qxa2 {[%emt 0:00:06]} Bxa2 {[%emt 0:00:02]} 29. Ra1 {[%emt 0:00:05]} Nd7 {[%emt 0:00:16]} 30. Kf2 {[%emt 0:00:02]} Bc4 {[%emt 0:00:04]} 31. Rxa6 {[%emt 0:00:05]} Bxa6 {[%emt 0:00:01]} 32. Nb3 {[%emt 0:00:06]} Bc4 {[%emt 0:00:06]} 33. Nc5 {[%emt 0:00:01]} Nxc5 {[%emt 0:00:06]} 34. Bxc5 {[%emt 0:00:03]} f6 {[%emt 0:00:02]} 35. Ke3 {[%emt 0:00:02]} Kf7 {[%emt 0:00:02]} 36. Bb4 {[%emt 0:00:04]} g6 {[%emt 0:00:04]} 37. g3 {[%emt 0:00:02]} h5 {[%emt 0:00:02]} 38. h4 {[%emt 0:00:02]} Ke6 {[%emt 0:00:01]} 39. f4 {[%emt 0:00:01]} f5 {[%emt 0:00:05]} 40. fxe5 {[%emt 0:00:04]} Kxe5 {[%emt 0:00:02]} 41. exf5 {[%emt 0:00:02]} Kxf5 {[%emt 0:00:01]} 42. Be7 {[%emt 0:00:02]} b5 {[%emt 0:00:04]} 43. Bd6 {[%emt 0:00:02]} Bf7 {[%emt 0:00:04]} 44. b4 {[%emt 0:00:02]} Ke6 {[%emt 0:00:04]} 45. Bf4 {[%emt 0:00:03]} Kd5 {[%emt 0:00:02]} 46. Kd3 {[%emt 0:00:02]} Be6 {[%emt 0:00:01]} 47. Kd2 {[%emt 0:00:03]} Bf5 {[%emt 0:00:02]} 48. Bc7 {[%emt 0:00:02]} c5 {[%emt 0:00:05]} 49. bxc5 {[%emt 0:00:04]} Kxc5 {[%emt 0:00:01]} 50. Bf4 {[%emt 0:00:02]} Kd5 {[%emt 0:00:03]} 51. Bc7 {[%emt 0:00:02]} Ke4 {[%emt 0:00:03]} 52. Bf4 {[%emt 0:00:03]} Kf3 {[%emt 0:00:04]} 53. Bb8 {[%emt 0:00:01]} Be6 {[%emt 0:00:02]} 54. Bf4 {[%emt 0:00:03]} Bc4 {[%emt 0:00:02]} 55. Bc7 {[%emt 0:00:02]} Kg4 {[%emt 0:00:02]} 56. Bf4 {[%emt 0:00:02]} g5 {[%emt 0:00:02]} 57. hxg5 {[%emt 0:00:02]} h4 {[%emt 0:00:02]} 58. gxh4 {[%emt 0:00:03]} Kxf4 {[%emt 0:00:02]} 59. g6 {[%emt 0:00:02]} Kg4 {[%emt 0:00:02]} 60. g7 {[%emt 0:00:03]} Kxh4 {[%emt 0:00:02]} 61. Ke3 {[%emt 0:00:02]} Kg5 {[%emt 0:00:02]} 62. Kd4 {[%emt 0:00:03]} Kf6 {[%emt 0:00:05]} 0-1

[Event "Queens Festival Final-B 2022"]
[Site "Tornelo"]
[Date "2022.06.25"]
[Round "3.4"]
[White "Mariroh, Fariha"]
[Black "Scarsi, Anna Laura"]
[Result "1-0"]
[ECO "B40"]
[WhiteElo "1839"]
[BlackElo "1867"]
[Annotator "NA RC"]
[PlyCount "47"]
[EventDate "2022.06.24"]
[EventType "tourn"]
[EventCountry "NET"]
[SourceTitle "playchess.com"]
[Source "ChessBase"]
[SourceQuality "1"]
[TimeControl "180+2"]

1. e4 {[%emt 0:00:02]} c5 {[%emt 0:00:05]} 2. Nf3 {[%emt 0:00:02]} e6 {[%emt 0:00:02]} 3. d4 {[%emt 0:00:01]} cxd4 {[%emt 0:00:01]} 4. Nxd4 {[%emt 0:00:00]} Nf6 {[%emt 0:00:02]} 5. Nc3 {[%emt 0:00:01]} Nc6 {[%emt 0:00:01]} 6. Nxc6 {[%emt 0:00:01]} bxc6 {[%emt 0:00:00]} 7. Bd3 {[%emt 0:00:02]} d5 {[%emt 0:00:02]} 8. O-O {[%emt 0:00:05]} Be7 {[%emt 0:00:04]} 9. Bf4 {[%emt 0:00:08]} O-O {[%emt 0:00:03]} 10. e5 {[%emt 0:00:20]} Nd7 {[%emt 0:00:03]} 11. Qf3 {[%emt 0:00:06]} f5 {[%emt 0:00:08]} 12. exf6 {[%emt 0:00:09]} Bxf6 {[%emt 0:00:10]} 13. Qh3 {[%emt 0:00:08]} g6 {[%emt 0:00:18]} 14. Qxe6+ {[%emt 0:00:02]} Kh8 {[%emt 0:00:04]} 15. Qxc6 {[%emt 0:00:06]} Rb8 {[%emt 0:00:12]} 16. Bxb8 {[%emt 0:00:04]} Nxb8 {[%emt 0:00:05]} 17. Qxd5 {[%emt 0:00:08]} Qc7 {[%emt 0:00:08]} 18. Qc4 {[%emt 0:00:05]} Qb7 {[%emt 0:00:08]} 19. Rab1 {[%emt 0:00:09]} Nd7 {[%emt 0:00:03]} 20. Nd5 {[%emt 0:00:06]} Ne5 {[%emt 0:00:07]} 21. Qb3 {[%emt 0:00:05]} Qc6 {[%emt 0:00:08]} 22. Nxf6 {[%emt 0:00:03]} Qxf6 {[%emt 0:00:02]} 23. Rbe1 {[%emt 0:00:10]} Bh3 {[%emt 0:00:52]} 24. Qc3 {[%emt 0:00:09]} 1-0